fUSD/lending_fUSD_20251110
["ID","MTS","AMOUNT","RATE_DAILY","PERIOD"]
[393552877,1762795289141,10000.01,0.000179,2]
[393552878,1762795297563,-641.269,0.0001764,2]
[393552879,1762795298788,-181.42431488,0.000179,2]
[393552880,1762795300832,-1316.27761833,0.000179,2]
[393552881,1762795300899,-10000.01,0.000179,2]
[393552882,1762795301031,-10000.01,0.000179,2]
[393552883,1762795301159,-10000.01,0.000179,2]
[393552884,1762795301255,-240.10234171,0.000179,2]
[393552885,1762795301313,-10000.01,0.000179,2]
[393552886,1762795301433,-10000.01,0.000179,2]
[393552887,1762795301578,-10000.01,0.000179,2]
[393552888,1762795303563,-10000.01,0.000179,2]
[393552889,1762795303823,-10000.01,0.000179,2]
[393552890,1762795303947,-10000.01,0.000179,2]
[393552891,1762795304074,-10000.01,0.000179,2]
[393552892,1762795315780,-10000.01,0.000179,2]
[393552893,1762795316226,-10000.01,0.000179,2]
[393552894,1762795316337,-10000.01,0.000179,2]
[393552895,1762795316450,-10000.01,0.000179,2]
[393552896,1762795316559,-10000.01,0.000179,2]
[393552897,1762795316867,-10000.01,0.000179,2]
[393552898,1762795321701,-200.0,0.0001781,2]
[393552899,1762795321732,-1519.0,0.0001784,2]
[393552900,1762795321790,-6562.01,0.000179,2]
[393552901,1762795321955,-10000.01,0.000179,2]
[393552902,1762795322075,-10000.01,0.000179,2]
[393552903,1762795322300,-10000.01,0.000179,2]
[393552904,1762795322336,150.0,0.00018244,120]
[393552905,1762795333798,-1539.90727193,0.00017591,2]
[393552906,1762795333829,-195.0,0.00017855,2]
[393552907,1762795333858,-500.0,0.00017873,2]
[393552908,1762795333890,-500.0,0.00017873,2]
[393552909,1762795334010,-4530.19545614,0.000179,2]
[393552910,1762795334055,-10000.01,0.000179,2]
[393552911,1762795334084,-10000.01,0.000179,2]
[393552912,1762795334113,-10000.01,0.000179,2]
[393552913,1762795334285,-208.4299984,0.00017873,2]
[393552914,1762795334323,-9583.1500032,0.000179,2]
[393552916,1762795342902,-10000.01,0.000179,2]
[393552917,1762795343094,-10000.01,0.000179,2]
[393552918,1762795343228,-10000.01,0.000179,2]
[393552919,1762795343370,-10000.01,0.000179,2]
[393552920,1762795343546,-10000.01,0.000179,2]
[393552921,1762795348777,-10000.01,0.000179,2]
[393552922,1762795348901,-10000.01,0.000179,2]
[393552923,1762795349031,-10000.01,0.000179,2]
[393552924,1762795351803,-500.0,0.00017899,2]
[393552925,1762795351831,-500.0,0.00017899,2]
[393552926,1762795351858,-230.06149772,0.00017899,2]
[393552927,1762795351888,-2534.05825544,0.000179,2]
[393552928,1762795352020,-500.0,0.00017899,2]
[393552929,1762795352029,-500.0,0.00017899,2]
[393552930,1762795352039,-500.0,0.00017899,2]
[393552931,1762795352048,-500.0,0.00017899,2]
[393552932,1762795352057,-471.77049368,0.00017899,2]
[393552933,1762795352104,-59.38533521,0.00017899,2]
[393552934,1762795352134,-500.0,0.00017899,2]
[393552935,1762795352164,-500.0,0.00017899,2]
[393552936,1762795352194,-2471.77049368,0.000179,2]
[393552937,1762795352222,-500.0,0.00017973,2]
[393552938,1762795352249,-500.0,0.00017973,2]
[393552939,1762795352279,-437.69834222,0.00017973,2]
[393552940,1762795352343,-500.0,0.00017899,2]
[393552941,1762795352372,-500.0,0.00017899,2]
[393552942,1762795352402,-500.0,0.00017899,2]
[393552943,1762795352433,-500.0,0.00017899,2]
[393552944,1762795352460,-62.30165778,0.00017973,2]
[393552945,1762795352488,-501.40957897,0.00017973,2]
[393552946,1762795352515,-500.0,0.00017973,2]
[393552947,1762795352545,-500.0,0.00017973,2]
[393552948,1762795352572,-500.0,0.00017973,2]
[393552949,1762795352599,-500.0,0.00017973,2]
[393552950,1762795352638,-372.5875265,0.00017973,2]
[393552951,1762795352838,-500.0,0.00017899,2]
[393552952,1762795352874,-500.0,0.00017899,2]
[393552953,1762795353178,-500.0,0.00017899,2]
[393552954,1762795353212,-500.0,0.00017899,2]
[393552955,1762795353246,-500.0,0.00017899,2]
[393552956,1762795353277,-127.4124735,0.00017973,2]
[393552957,1762795353307,-200.0,0.00017989,2]
[393552958,1762795353342,-151.0,0.00017989,2]
[393552959,1762795353373,-151.0,0.00017989,2]
[393552960,1762795353404,-151.0,0.00017989,2]
[393552961,1762795353435,-151.0,0.00017989,2]
[393552962,1762795353466,-151.0,0.00017989,2]
[393552963,1762795353494,-151.0,0.00017989,2]
[393552964,1762795353524,-151.0,0.00017989,2]
[393552965,1762795353553,-151.0,0.00017989,2]
[393552966,1762795353581,-151.0,0.00017989,2]
[393552967,1762795353611,-151.0,0.00017989,2]
[393552968,1762795353646,-151.0,0.00017989,2]
[393552969,1762795353677,-151.0,0.00017989,2]
[393552970,1762795353707,-151.0,0.00017989,2]
[393552971,1762795353741,-151.0,0.00017989,2]
[393552972,1762795353874,-500.0,0.00017899,2]
[393552973,1762795353919,-500.0,0.00017899,2]
[393552974,1762795353958,-500.0,0.00017899,2]
[393552975,1762795353998,-151.0,0.00017989,2]
[393552976,1762795354035,-151.0,0.00017989,2]
[393552977,1762795354069,-151.0,0.00017989,2]
[393552978,1762795354102,-151.0,0.00017989,2]
[393552979,1762795354134,-151.0,0.00017989,2]
[393552980,1762795354165,-151.0,0.00017989,2]
[393552981,1762795354196,-151.0,0.00017989,2]
[393552982,1762795354633,500.0,0.00017899,2]
[393552983,1762795354731,500.0,0.00017899,2]
[393552984,1762795354790,500.0,0.00017899,2]
[393552985,1762795354856,500.0,0.00017899,2]
[393552986,1762795354924,500.0,0.00017899,2]
[393552987,1762795355002,500.0,0.00017899,2]
[393552988,1762795355113,500.0,0.00017899,2]
[393552989,1762795355157,247.58471223,0.00017899,2]
[393552990,1762795355195,500.0,0.00017899,2]
[393552991,1762795355300,500.0,0.00017899,2]
[393552992,1762795355379,138.42528777,0.00017899,2]
[393552993,1762795356095,-279.76522667,0.00017899,2]
[393552994,1762795356531,-81.80948556,0.00017899,2]
[393552995,1762795356565,-500.0,0.00017899,2]
[393552996,1762795356671,1519.0,0.00017954,2]
[393552997,1762795358899,1519.0,0.0001796,2]
[393552998,1762795360582,200.0,0.00017989,2]
[393552999,1762795362106,200.0,0.00017989,2]
[393553000,1762795371083,500.0,0.00017899,2]
[393553001,1762795371829,247.58471223,0.00017899,2]
[393553002,1762795375537,1531.70828,0.00017908,2]
[393553003,1762795376922,232.54,0.00014001,2]
[393553004,1762795377132,232.54,0.00015401,2]
[393553005,1762795377336,232.54,0.00016801,2]
[393553006,1762795384121,500.0,0.00017973,2]
[393553007,1762795384368,500.0,0.00017973,2]
[393553008,1762795384552,500.0,0.00017973,2]
[393553009,1762795384583,504.83378329,0.00017873,2]
[393553010,1762795415550,-151.0,0.00017997,2]
[393553011,1762795430584,211.0,9.989e-05,2]
[393553012,1762795431064,211.0,9.989e-05,2]
[393553013,1762795447396,-300.0,0.00017998,2]
[393553014,1762795456501,152.39998662,0.00017982,2]
[393553015,1762795458194,9247.61001338,0.000179,2]
[393553016,1762795458218,10000.01,0.000179,2]
[393553017,1762795458241,10000.01,0.000179,2]
[393553018,1762795458265,10000.01,0.000179,2]
[393553019,1762795458288,10000.01,0.000179,2]
[393553020,1762795458312,10000.01,0.000179,2]
[393553021,1762795458338,10000.01,0.000179,2]
[393553022,1762795458363,10000.01,0.000179,2]
[393553023,1762795458387,10000.01,0.000179,2]
[393553024,1762795458411,10000.01,0.000179,2]
[393553025,1762795461693,500.0,0.00027999,120]
[393553026,1762795461906,500.0,0.00027999,120]
[393553027,1762795462156,500.0,0.00029761,120]
[393553028,1762795468532,-7315.26322448,0.000179,2]
[393553029,1762795468694,-10000.01,0.000179,2]
[393553030,1762795468772,-10000.01,0.000179,2]
[393553031,1762795468943,-10000.01,0.000179,2]
[393553032,1762795469046,-10000.01,0.000179,2]
[393553033,1762795469675,-10000.01,0.000179,2]
[393553034,1762795469721,-10000.01,0.000179,2]
[393553035,1762795469958,-10000.01,0.000179,2]
[393553036,1762795470002,-10000.01,0.000179,2]
[393553037,1762795471343,-10000.01,0.000179,2]
[393553038,1762795477385,-300.0,0.000177,6]
[393553039,1762795477417,-600.0,0.000178,6]
[393553040,1762795477480,-8200.01,0.000179,2]
[393553041,1762795477509,-10000.01,0.000179,2]
[393553042,1762795477716,-10000.01,0.000179,2]
[393553043,1762795477870,-10000.01,0.000179,2]
[393553044,1762795477985,-10000.01,0.000179,2]
[393553045,1762795478139,-10000.01,0.000179,2]
[393553046,1762795478244,-10000.01,0.000179,2]
[393553047,1762795478369,-10000.01,0.000179,2]
[393553048,1762795478507,-10000.01,0.000179,2]
[393553049,1762795486401,-625.21960734,0.00017899,2]
[393553050,1762795486462,-8749.57078532,0.000179,2]
[393553051,1762795486501,-10000.01,0.000179,2]
[393553052,1762795486640,-10000.01,0.000179,2]
[393553053,1762795486789,-10000.01,0.000179,2]
[393553054,1762795487132,-10000.01,0.000179,2]
[393553055,1762795487149,-10000.01,0.000179,2]
[393553056,1762795487176,-10000.01,0.000179,2]
[393553057,1762795487230,-10000.01,0.000179,2]
[393553058,1762795487381,-10000.01,0.000179,2]
[393553059,1762795487530,-10000.01,0.000179,2]
[393553060,1762795492420,-10000.01,0.000179,2]
[393553061,1762795492523,-10000.01,0.000179,2]
[393553062,1762795492669,-10000.01,0.000179,2]
[393553063,1762795492857,-3512.84402318,0.000179,2]
[393553064,1762795492882,-2974.32195364,0.000179,2]
[393553065,1762795492974,-10000.01,0.000179,2]
[393553066,1762795493096,-4919.52536831,0.000179,2]
[393553067,1762795493131,-160.95926338,0.000179,6]
[393553068,1762795493218,-839.04073662,0.000179,6]
[393553069,1762795510336,999.0,0.00017526,3]
[393553070,1762795513717,174.31,0.00017526,2]
[393553071,1762795524426,185.79765186,0.000179,2]
[393553072,1762795527101,435.86351743,0.000301,120]
[393553073,1762795542132,58341.33939649,0.0002,30]
[393553074,1762795568424,322.40978053,0.00017901,2]
[393553075,1762795604158,4672.47359409,0.00017901,2]
[393553076,1762795610881,151.37460098,0.00017901,3]
[393553077,1762795615006,3494.64437254,0.000162,5]
[393553078,1762795615029,9137.61552214,0.000162,5]
[393553079,1762795618299,-1200.0,0.00017998,2]
[393553080,1762795618328,-300.0,0.00017998,2]
[393553081,1762795618356,-300.0,0.00017998,2]
[393553082,1762795619081,638.64124776,0.00017899,2]
[393553083,1762795620258,462.42371366,0.000179,2]
[393553084,1762795622066,550.0,0.00017998,2]
[393553085,1762795622842,1517.64,0.000153,2]
[393553086,1762795625078,638.64124775,0.000179,2]
[393553087,1762795625264,300.0,0.00017998,2]
[393553089,1762795626952,2292.66379083,0.000179,2]
[393553090,1762795626985,10000.01,0.000179,2]
[393553091,1762795627016,10000.01,0.000179,2]
[393553092,1762795627045,10000.01,0.000179,2]
[393553093,1762795627072,10000.01,0.000179,2]
[393553094,1762795627100,10000.01,0.000179,2]
[393553095,1762795627125,10000.01,0.000179,2]
[393553096,1762795627152,10000.01,0.000179,2]
[393553097,1762795627177,10000.01,0.000179,2]
[393553098,1762795627203,10000.01,0.000179,2]
[393553099,1762795627310,412.78347032,0.0002301,120]
[393553100,1762795627817,-250.0,0.000179,2]
[393553101,1762795642483,-4484.80425839,0.000179,2]
[393553102,1762795642571,-10000.01,0.000179,2]
[393553103,1762795642687,-10000.01,0.000179,2]
[393553104,1762795642832,-10000.01,0.000179,2]
[393553105,1762795642958,-10000.01,0.000179,2]
[393553106,1762795643113,-10000.01,0.000179,2]
[393553107,1762795643225,-10000.01,0.000179,2]
[393553109,1762795647612,-10000.01,0.000179,2]
[393553110,1762795648229,-10000.01,0.000179,2]
[393553111,1762795648353,-10000.01,0.000179,2]
[393553113,1762795662795,383.94068318,0.00027,120]
[393553114,1762795669344,-2525.425424,0.0001781,2]
[393553115,1762795669378,-1200.0,0.00017899,2]
[393553116,1762795669437,-2549.159152,0.000179,2]
[393553117,1762795669751,-10000.01,0.000179,2]
[393553118,1762795669766,-10000.01,0.000179,2]
[393553119,1762795669807,-10000.01,0.000179,2]
[393553120,1762795669962,-10000.01,0.000179,2]
[393553121,1762795670089,-10000.01,0.000179,2]
[393553122,1762795670182,-10000.01,0.000179,2]
[393553123,1762795672384,-10000.01,0.000179,2]
[393553124,1762795672574,-10000.01,0.000179,2]
[393553125,1762795672699,-10000.01,0.000179,2]
[393553126,1762795674144,504.84709722,0.0003,120]
[393553127,1762795676265,-279.77363288,0.00015,2]
[393553128,1762795678339,-10000.01,0.00015,2]
[393553129,1762795678459,-10000.01,0.00015,2]
[393553130,1762795678553,-10000.01,0.00015,2]
[393553131,1762795679110,-10000.01,0.00015,2]
[393553132,1762795679124,-10000.01,0.00015,2]
[393553133,1762795679137,-10000.01,0.00015,2]
[393553134,1762795679151,-10000.01,0.00015,2]
[393553135,1762795680704,-270.26481743,0.00015,2]
[393553136,1762795681439,-10000.01,0.00015,2]
[393553137,1762795681661,-10000.01,0.00015,2]
[393553138,1762795681789,-300.0,0.00014999,2]
[393553139,1762795681825,-9400.01,0.00015,2]
[393553140,1762795684344,-10000.01,0.00015,2]
[393553141,1762795684476,-10000.01,0.00015,2]
[393553142,1762795684602,-10000.01,0.00015,2]
[393553143,1762795684716,-10000.01,0.00015,2]
[393553144,1762795684860,-10000.01,0.00015,2]
[393553145,1762795684994,-10000.01,0.00015,2]
[393553146,1762795689949,-202.37800169,0.00015,2]
[393553147,1762795690373,-10000.01,0.00015,2]
[393553148,1762795690520,-10000.01,0.00015,2]
[393553149,1762795690656,-10000.01,0.00015,2]
[393553150,1762795690859,-10000.01,0.00015,2]
[393553151,1762795691121,-181.34241489,0.00015,2]
[393553152,1762795692745,-207.1280816,0.00015,2]
[393553153,1762795693509,-10000.01,0.00015,2]
[393553154,1762795693880,-10000.01,0.00015,2]
[393553155,1762795694007,-10000.01,0.00015,2]
[393553156,1762795694152,-10000.01,0.00015,2]
[393553157,1762795694275,-10000.01,0.00015,2]
[393553158,1762795694763,-234.16490279,0.00015,2]
[393553159,1762795696412,-10000.01,0.00015,2]
[393553160,1762795696522,-178.36460072,0.00015,2]
[393553161,1762795696547,-10000.01,0.00015,2]
[393553162,1762795696659,-10000.01,0.00015,2]
[393553163,1762795696770,-10000.01,0.00015,2]
[393553164,1762795696902,-10000.01,0.00015,2]
[393553165,1762795698793,-195.0,0.00015,2]
[393553166,1762795699505,-10000.01,0.00015,2]
[393553167,1762795699692,-10000.01,0.00015,2]
[393553168,1762795699812,-10000.01,0.00015,2]
[393553169,1762795700551,-10000.01,0.00015,2]
[393553170,1762795702397,-10000.01,0.00015,2]
[393553171,1762795702524,-10000.01,0.00015,2]
[393553172,1762795702651,-10000.01,0.00015,2]
[393553173,1762795702782,-10000.01,0.00015,2]
[393553174,1762795702908,-10000.01,0.00015,2]
[393553175,1762795703019,-10000.01,0.00015,2]
[393553176,1762795704495,-232.40698235,0.00015,2]
[393553177,1762795706367,-283.78680802,0.00015,2]
[393553178,1762795712428,-195.39714287,0.00014999,2]
[393553180,1762795712453,-0.50467939,0.00014999,2]
[393553181,1762795716604,-221.25861658,0.00014999,2]
[393553184,1762795719978,-267.17748346,0.00014999,2]
[393553185,1762795720642,-11.05922057,0.00014999,2]
[393553186,1762795720674,-291.85985222,0.00014999,2]
[393553187,1762795720705,-502.73465339,0.00014999,2]
[393553188,1762795720740,-500.0,0.00014999,2]
[393553189,1762795720776,-500.0,0.00014999,2]
[393553190,1762795720806,-440.17538537,0.00014999,2]
[393553191,1762795720835,-500.0,0.00014999,2]
[393553192,1762795720864,-500.0,0.00014999,2]
[393553193,1762795720894,-500.0,0.00014999,2]
[393553194,1762795720927,-500.0,0.00014999,2]
[393553195,1762795720954,-612.81656448,0.00014999,2]
[393553196,1762795721483,-500.0,0.00014999,2]
[393553197,1762795721510,-296.36423217,0.00014999,2]
[393553198,1762795721538,-500.0,0.00014999,2]
[393553199,1762795721571,-500.0,0.00014999,2]
[393553200,1762795721609,-500.0,0.00014999,2]
[393553201,1762795721641,-500.0,0.00014999,2]
[393553202,1762795721672,-500.0,0.00014999,2]
[393553203,1762795721699,-363.49813155,0.00014999,2]
[393553204,1762795721730,-500.0,0.00014999,2]
[393553205,1762795721762,-500.0,0.00014999,2]
[393553206,1762795721794,-180.28527256,0.00014999,2]
[393553207,1762795721877,-319.71472744,0.00014999,2]
[393553208,1762795721910,-500.0,0.00014999,2]
[393553209,1762795721944,-500.0,0.00014999,2]
[393553210,1762795722163,-500.0,0.00014999,2]
[393553211,1762795722196,-500.0,0.00014999,2]
[393553212,1762795722228,-500.0,0.00014999,2]
[393553213,1762795722259,-500.0,0.00014999,2]
[393553214,1762795722289,-500.0,0.00014999,2]
[393553215,1762795722319,-500.0,0.00014999,2]
[393553216,1762795722348,-500.0,0.00014999,2]
[393553217,1762795722448,-500.0,0.00014999,2]
[393553218,1762795722480,-500.0,0.00014999,2]
[393553219,1762795722511,-500.0,0.00014999,2]
[393553220,1762795722541,-500.0,0.00014999,2]
[393553221,1762795722571,-500.0,0.00014999,2]
[393553222,1762795722603,-500.0,0.00014999,2]
[393553223,1762795722632,-500.0,0.00014999,2]
[393553224,1762795722663,-500.0,0.00014999,2]
[393553225,1762795722694,-500.0,0.00014999,2]
[393553226,1762795722726,-500.0,0.00014999,2]
[393553227,1762795722774,-500.0,0.00014999,2]
[393553228,1762795722804,-500.0,0.00014999,2]
[393553229,1762795722838,-500.0,0.00014999,2]
[393553230,1762795722875,-500.0,0.00014999,2]
[393553231,1762795722907,-500.0,0.00014999,2]
[393553232,1762795722941,-416.38370683,0.00014999,2]
[393553233,1762795722975,-500.0,0.00014999,2]
[393553234,1762795723007,-500.0,0.00014999,2]
[393553235,1762795723043,-500.0,0.00014999,2]
[393553236,1762795723074,-500.0,0.00014999,2]
[393553237,1762795723163,-500.0,0.00014999,2]
[393553238,1762795723196,-500.0,0.00014999,2]
[393553239,1762795723227,-500.0,0.00014999,2]
[393553240,1762795723762,-210.4552947,0.00015,2]
[393553241,1762795724730,151.0,0.0003,120]
[393553242,1762795725942,-280.78466054,0.00015,2]
[393553243,1762795728220,500.0,0.00014999,2]
[393553244,1762795728269,500.0,0.00014999,2]
[393553245,1762795728310,500.0,0.00014999,2]
[393553246,1762795728350,500.0,0.00014999,2]
[393553247,1762795728388,500.0,0.00014999,2]
[393553248,1762795728424,500.0,0.00014999,2]
[393553249,1762795728460,500.0,0.00014999,2]
[393553250,1762795728498,500.0,0.00014999,2]
[393553251,1762795728541,500.0,0.00014999,2]
[393553252,1762795728577,150.0,0.00014999,2]
[393553253,1762795728614,500.0,0.00014999,2]
[393553254,1762795728667,500.0,0.00014999,2]
[393553255,1762795728707,500.0,0.00014999,2]
[393553256,1762795728742,-233.56092777,0.00015,2]
[393553257,1762795728780,500.0,0.00014999,2]
[393553258,1762795728823,350.01,0.00014999,2]
[393553259,1762795728847,149.99,0.00014999,2]
[393553260,1762795728890,500.0,0.00014999,2]
[393553261,1762795728928,3896.657858,0.00014925,2]
[393553262,1762795731254,-290.981863,0.00015,2]
[393553263,1762795732973,-176.99264016,0.00015,2]
[393553264,1762795735892,-381.50790527,0.00015,2]
[393553265,1762795735958,-8453.362142,0.00015,2]
[393553266,1762795736120,-10000.01,0.00015,2]
[393553267,1762795736231,-10000.01,0.00015,2]
[393553268,1762795736354,-10000.01,0.00015,2]
[393553269,1762795736473,-10000.01,0.00015,2]
[393553270,1762795738067,-228.61991867,0.00015,2]
[393553271,1762795738565,-10000.01,0.00015,2]
[393553272,1762795740547,-258.22599039,0.00015,2]
[393553273,1762795741613,-10000.01,0.00015,2]
[393553274,1762795741801,-10000.01,0.00015,2]
[393553275,1762795741933,-10000.01,0.00015,2]
[393553276,1762795742065,-10000.01,0.00015,2]
[393553277,1762795742678,-10000.01,0.00015,2]
[393553278,1762795743473,-293.10443283,0.00015,2]
[393553280,1762795745691,-240.22591771,0.00015,2]
[393553281,1762795750337,-164.46490794,0.00015,2]
[393553287,1762795766771,-231.10645961,0.00015,2]
[393553288,1762795768798,-407.00884597,0.00015,2]
[393553289,1762795772618,-243.99171135,0.00015,2]
[393553290,1762795776013,-227.07164347,0.00015,2]
[393553291,1762795777968,-392.27553776,0.00015,2]
[393553292,1762795780335,-170.88129443,0.00015,2]
[393553293,1762795787377,2576.70482018,0.00014985,2]
[393553294,1762795788053,-185.08854538,0.00015,2]
[393553295,1762795790646,-268.89354039,0.00015,2]
[393553296,1762795793194,-297.38247553,0.00015,2]
[393553297,1762795797492,-283.65590912,0.00015,2]
[393553298,1762795803514,-300.0,0.00014999,2]
[393553299,1762795803540,-67.53370683,0.00014999,2]
[393553300,1762795803619,1153.64,0.0001499,2]
[393553301,1762795803858,1153.64,0.0001499,2]
[393553302,1762795804090,1153.64,0.0001499,2]
[393553303,1762795804312,1153.64,0.0001499,2]
[393553304,1762795804855,1153.64,0.0001499,2]
[393553305,1762795805068,-232.46629317,0.00014999,2]
[393553306,1762795805099,-300.0,0.00014999,2]
[393553307,1762795805368,-1200.0,0.00014999,2]
[393553308,1762795805399,-150.0,0.00014999,2]
[393553309,1762795805432,-300.0,0.00014999,2]
[393553310,1762795806044,300.0,0.00014998,2]
[393553311,1762795806273,5335.07741366,0.0001499,2]
[393553312,1762795806308,10000.01,0.0001499,2]
[393553313,1762795806344,1970.62258634,0.0001499,2]
[393553314,1762795806429,8029.38741366,0.0001499,2]
[393553315,1762795806466,9276.32258634,0.0001499,2]
[393553316,1762795807453,-211.98261632,0.00015,2]
[393553317,1762795809726,-10.81297554,0.00015,2]
[393553318,1762795809758,-201.5454573,0.00015,2]
[393553319,1762795810201,500.0,0.00014999,2]
[393553320,1762795810260,223.68741366,0.00014999,2]
[393553321,1762795810599,276.31258634,0.00014999,2]
[393553322,1762795810643,500.0,0.00014999,2]
[393553323,1762795810692,500.0,0.00014999,2]
[393553324,1762795810742,500.0,0.00014999,2]
[393553325,1762795810787,552.96708097,0.00014999,2]
[393553326,1762795810845,500.0,0.00014999,2]
[393553327,1762795810895,500.0,0.00014999,2]
[393553328,1762795810966,500.0,0.00014999,2]
[393553329,1762795811013,500.0,0.00014999,2]
[393553330,1762795811058,500.0,0.00014999,2]
[393553332,1762795815097,-172.9860387,0.00015,2]
[393553333,1762795817178,-496.76516185,0.00015,2]
[393553334,1762795820298,-246.1582886,0.00015,2]
[393553335,1762795822450,-151.0,0.00015,2]
[393553336,1762795824028,-385.45304278,0.00015,2]
[393553341,1762795831570,-397.84647269,0.00015,2]
[393553346,1762795831583,-2582.14368416,0.00015,2]
[393553353,1762795831624,-3913.91000048,0.00015,2]
[393553354,1762795831731,-371.86527032,0.00015,2]
[393553355,1762795831743,-2111.595535,0.00015,2]
[393553356,1762795831786,-816.62724007,0.00015,2]
[393553357,1762795831841,-1516.951264,0.00015,2]
[393553358,1762795831853,-3058.77558718,0.00015,2]
[393553396,1762795834359,-246.67211326,0.00015,2]
[393553397,1762795834459,-254.5674,0.00015,2]
[393553398,1762795834544,-254.0,0.00015,2]
[393553402,1762795837583,-4163.18741049,0.00015,2]
[393553403,1762795837595,-5138.5,0.00015,2]
[393553404,1762795837606,-3480.88549304,0.00015,2]
[393553405,1762795837639,-867.30632166,0.00015,2]
[393553406,1762795837650,-101359.99999989,0.00015,2]
[393553407,1762795837705,-386890.68246786,0.00015,2]
[393553408,1762795837718,-428634.30455646,0.00015,3]
[393553409,1762795837727,-250.0,0.00015,2]
[393553410,1762795837737,-195.0,0.00015,2]
[393553411,1762795837746,-1455.80938595,0.000156,2]
[393553412,1762795837755,-1919.24739591,0.00015807,2]
[393553413,1762795837766,-151.0,0.00015906,2]
[393553414,1762795837775,-151.0,0.00016015,2]
[393553415,1762795837784,-255.0,0.00016124,2]
[393553416,1762795837793,-12795.16170071,0.0001624,2]
[393553417,1762795837803,-200.0,0.0001634,2]
[393553418,1762795837813,-180.0,0.0001634,2]
[393553419,1762795837822,-251.42485482,0.0001634,2]
[393553420,1762795837831,-420.0,0.00016415,2]
[393553421,1762795837840,-327.0,0.00016416,2]
[393553422,1762795837849,-420.0,0.00016416,2]
[393553423,1762795837859,-420.0,0.00016416,2]
[393553425,1762795837869,-12795.16170062,0.00016425,2]
[393553427,1762795837879,-425.68398099,0.00016438,2]
[393553429,1762795837888,-496.99827417,0.00016438,2]
[393553431,1762795837897,-190.98545382,0.00016438,2]
[393553433,1762795837907,-218.30774157,0.00016438,2]
[393553435,1762795837916,-261.06862099,0.00016438,2]
[393553437,1762795837926,-243.99171135,0.00016438,2]
[393553439,1762795837936,-482.47102091,0.00016438,2]
[393553441,1762795837945,-445.37791582,0.0001645,2]
[393553443,1762795837956,-300.0,0.00016499,2]
[393553445,1762795837965,-1680.0,0.00016499,2]
[393553447,1762795837974,-300.0,0.00016499,2]
[393553449,1762795837984,-300.0,0.00016499,2]
[393553451,1762795837993,-2500.0,0.00016499,2]
[393553453,1762795838002,-300.0,0.000165,2]
[393553455,1762795838012,-250.0,0.000165,2]
[393553457,1762795838021,-195.0,0.000165,2]
[393553459,1762795838032,-500.0,0.000165,2]
[393553460,1762795838043,-374.86286637,0.000165,2]
[393553461,1762795838053,-500.0,0.000165,2]
[393553462,1762795838066,-500.0,0.000165,2]